bitfinex-derivatives/quotes_BTCF0:USTF0_20210108
["timestamp","ask_amount","ask_price","bid_price","bid_amount"]
[1610075596444,0.2914,37921.0,37884.0,0.15645996]
[1610075596847,0.31019561,37929.0,37885.0,0.02013457]
[1610075597145,0.2941,37929.0,37885.0,0.02013457]
[1610075597747,0.13632608,37886.0,37885.0,0.02013457]
[1610075598548,3.1707,37901.0,37885.0,0.02013457]
[1610075598947,3.1707,37901.0,37884.0,0.02011036]
[1610075599147,3.1707,37901.0,37886.0,0.02011036]
[1610075599349,3.1707,37901.0,37885.0,0.0201104]
[1610075599748,0.13632608,37886.0,37884.0,0.0201104]
[1610075599948,0.13632608,37886.0,37883.0,0.08819]
[1610075600149,0.13632608,37886.0,37885.0,0.02011077]
[1610075600348,0.13632608,37886.0,37885.0,0.15434077]
[1610075600548,0.13632608,37886.0,37885.0,0.13423]
[1610075600748,0.13632608,37886.0,37885.0,0.15434214]
[1610075604950,0.13632608,37886.0,37885.0,0.13423]
[1610075605153,0.13632608,37886.0,37885.0,0.15434741]
[1610075611659,0.13632608,37886.0,37867.0,0.08294]
[1610075611860,0.13632608,37868.0,37856.0,0.1198658]
[1610075612059,0.01609504,37906.0,37837.0,0.13632608]
[1610075612260,0.2874,37905.0,37857.0,0.02012006]
[1610075612461,3.4152,37872.0,37857.0,0.0002689]
[1610075612660,4.1199,37858.0,37838.0,0.02012099]
[1610075612861,4.1199,37858.0,37837.0,0.10726]
[1610075613060,6.3042,37871.0,37839.0,0.02012565]
[1610075613261,6.5228,37866.0,37838.0,0.02012787]
[1610075613460,1.5,37865.0,37838.0,0.02012787]
[1610075613660,1.5,37865.0,37840.0,0.02013056]
[1610075613860,0.13632608,37841.0,37840.0,0.09361]
[1610075614062,3.68902608,37841.0,37840.0,0.09361]
[1610075614264,3.68902608,37841.0,37840.0,0.11347896]
[1610075614461,3.68902608,37841.0,37840.0,0.11374811]
[1610075615261,3.68902608,37841.0,37808.0,0.12000021]
[1610075615464,0.13632608,37841.0,37808.0,0.12000021]
[1610075615664,0.13632608,37841.0,37776.0,4.4355]
[1610075615665,4.4224,37818.0,37776.0,4.4355]
[1610075615864,0.08595,37849.0,37809.0,0.02013784]
[1610075616064,3.4185,37813.0,37809.0,0.02013784]
[1610075616264,3.4185,37813.0,37781.0,0.02013818]
[1610075616463,3.4185,37813.0,37810.0,0.02013799]
[1610075616664,3.4185,37813.0,37810.0,0.08976]
[1610075617265,3.4185,37813.0,37811.0,0.02013857]
[1610075617665,0.08595,37849.0,37811.0,0.02013857]
[1610075617865,0.08595,37849.0,37810.0,0.08976]
[1610075617866,4.0634,37811.0,37810.0,0.08976]
[1610075618265,4.0634,37811.0,37810.0,0.10990179]
[1610075619065,4.0634,37811.0,37810.0,0.08976]
[1610075619265,4.0634,37811.0,37810.0,0.02014575]
[1610075619865,4.0634,37811.0,37794.0,0.02014568]
[1610075620068,0.13632608,37812.0,37810.0,0.00026928]
[1610075620266,4.1225,37806.0,37785.0,0.12795]
[1610075620468,4.25661,37806.0,37785.0,0.12795]
[1610075620668,0.13411,37806.0,37786.0,0.02014706]
[1610075621469,0.13632608,37812.0,37786.0,0.02014706]
[1610075621871,0.13632608,37798.0,37797.0,0.13632608]
[1610075622069,0.13632608,37798.0,37786.0,0.02014706]
[1610075622273,3.3424,37830.0,37785.0,0.12795]
[1610075622274,3.3424,37830.0,37797.0,0.02014395]
[1610075622470,3.3424,37830.0,37797.0,0.10095]
[1610075622672,3.3424,37830.0,37798.0,0.02014167]
[1610075622970,3.3424,37830.0,37797.0,0.10095]
[1610075623170,0.10762,37839.0,37799.0,0.01987192]
[1610075623370,0.10762,37839.0,37799.0,4.43764111]
[1610075623572,0.08595,37849.0,37799.0,4.4175]
[1610075623770,0.08595,37849.0,37800.0,0.06585547]
[1610075623971,0.13632608,37817.0,37800.0,0.06585547]
[1610075624373,3.6031,37815.0,37798.0,0.02013896]
[1610075624571,3.6031,37815.0,37801.0,0.02013846]
[1610075624771,3.6031,37815.0,37799.0,0.02013881]
[1610075625174,3.6031,37815.0,37798.0,0.02013956]
[1610075625372,3.6031,37815.0,37800.0,0.02014054]
[1610075625575,3.6031,37815.0,37799.0,0.02014126]
[1610075625873,3.6031,37815.0,37801.0,0.02014123]
[1610075626073,3.6031,37815.0,37801.0,0.00026919]
[1610075626274,3.6031,37815.0,37800.0,0.0201415]
[1610075626473,3.6031,37815.0,37802.0,0.00026919]
[1610075626673,3.6031,37815.0,37801.0,0.02014236]
[1610075626873,3.6031,37815.0,37803.0,0.00026921]
[1610075627273,3.6031,37815.0,37798.0,0.02014238]
[1610075627474,3.6031,37815.0,37804.0,0.00026921]
[1610075627675,0.13582,37830.0,37799.0,0.02014255]
[1610075628074,4.0152,37799.0,37785.0,0.12795]
[1610075628275,4.0152,37799.0,37754.0,3.9399]
[1610075628476,0.13632608,37800.0,37786.0,0.02014634]
[1610075628676,3.8729,37790.0,37786.0,0.10508634]
[1610075628876,0.13632608,37800.0,37786.0,0.08494]
[1610075629276,3.3549,37787.0,37740.0,3.1615]
[1610075629877,3.3549,37787.0,37741.0,0.14021661]
[1610075630076,0.09274,37807.0,37767.0,0.27001608]
[1610075630278,3.5419,37813.0,37767.0,0.27001608]
[1610075630477,0.11329,37818.0,37767.0,0.27001608]
[1610075630677,0.5805,37818.0,37768.0,0.01860027]
[1610075630876,0.484998,37829.0,37768.0,0.01860027]
[1610075631078,4.4115,37807.0,37768.0,0.01860027]
[1610075632078,0.13632608,37769.0,37768.0,0.01860027]
[1610075633477,0.10955,37813.0,37768.0,0.01860027]
[1610075633678,4.36,37802.0,37768.0,0.01860027]
[1610075634078,0.13632608,37771.0,37769.0,0.13632608]
[1610075634279,0.13632608,37771.0,37769.0,0.15492229]
[1610075634479,4.36,37802.0,37769.0,0.15492229]
[1610075634679,4.36,37802.0,37770.0,0.01859637]
[1610075635983,0.13632608,37771.0,37770.0,0.01859637]
[1610075636181,0.13632608,37771.0,37768.0,0.01859666]
[1610075636381,0.13632608,37771.0,37767.0,0.13369]
[1610075636382,0.13632608,37771.0,37770.0,0.01859635]
[1610075636580,0.13632608,37771.0,37769.0,0.01859678]
[1610075636980,0.13632608,37771.0,37768.0,0.01859685]
[1610075637180,0.13632608,37771.0,37770.0,0.01859703]
[1610075637380,0.13632608,37771.0,37769.0,0.01859733]
[1610075637680,0.13632608,37771.0,37768.0,0.01859733]
[1610075637982,0.13632608,37771.0,37770.0,0.0185978]
[1610075638181,0.13632608,37771.0,37769.0,0.01859842]
[1610075638480,0.13632608,37771.0,37767.0,0.13369]
[1610075638481,0.13632608,37771.0,37770.0,0.01859896]
[1610075639080,0.13632608,37771.0,37768.0,0.01859855]
[1610075639281,0.13632608,37771.0,37770.0,0.01859873]
[1610075639480,0.13632608,37771.0,37769.0,0.01859894]
[1610075639880,0.13632608,37771.0,37768.0,0.01859904]
[1610075640083,0.13632608,37771.0,37770.0,0.01859936]
[1610075640281,0.13632608,37771.0,37769.0,0.01859954]
[1610075640682,0.13632608,37771.0,37768.0,0.01860003]
[1610075640881,0.13632608,37771.0,37770.0,0.01860156]
[1610075641081,0.13632608,37771.0,37769.0,0.0186027]
[1610075641381,0.13632608,37771.0,37770.0,0.01860245]
[1610075641781,4.36452608,37771.0,37770.0,0.01860245]
[1610075641983,4.36452608,37771.0,37768.0,0.01860321]
[1610075642185,4.36452608,37771.0,37767.0,0.13369]
[1610075642186,4.36452608,37771.0,37770.0,0.01860344]
[1610075642382,4.36452608,37771.0,37769.0,0.01860406]
[1610075642784,4.36452608,37771.0,37770.0,0.01860526]
[1610075643187,4.36452608,37771.0,37755.0,0.01860698]
[1610075643584,0.13632608,37771.0,37770.0,0.0186075]
[1610075643785,0.13632608,37771.0,37754.0,0.11514]
[1610075643786,0.13632608,37771.0,37756.0,0.0186075]
[1610075643985,0.09586,37773.0,37770.0,0.01860753]
[1610075644385,0.1075,37786.0,37754.0,0.11514]
[1610075644386,0.1075,37786.0,37757.0,0.01860758]
[1610075644585,0.1075,37786.0,37754.0,0.11514]
[1610075644586,0.1075,37786.0,37771.0,0.01860675]
[1610075644785,0.1075,37786.0,37758.0,0.01834151]
[1610075644985,0.1075,37786.0,37772.0,0.00026648]
[1610075645187,4.078,37773.0,37772.0,0.01860737]
[1610075645386,4.078,37773.0,37755.0,0.01860699]
[1610075645585,4.078,37773.0,37772.0,0.01860768]
[1610075645788,4.078,37773.0,37756.0,0.0186064]
[1610075645985,0.1075,37786.0,37756.0,0.0186064]
[1610075645986,0.13632608,37757.0,37756.0,0.0186064]
[1610075646186,0.13632608,37757.0,37755.0,0.01860623]
[1610075646386,0.13632608,37757.0,37755.0,0.01860646]
[1610075646585,0.13632608,37757.0,37754.0,0.11514]
[1610075647386,0.13632608,37757.0,37741.0,0.11610362]
[1610075647787,0.13632608,37757.0,37716.0,0.01860802]
[1610075647988,0.13646,37777.0,37742.0,0.0186082]
[1610075648186,0.1075,37786.0,37742.0,0.12478]
[1610075648389,3.4241,37817.0,37742.0,0.12478]
[1610075648589,0.2948,37816.0,37743.0,0.01860792]
[1610075648986,0.2948,37816.0,37761.0,4.0994]
[1610075649189,3.8859,37852.0,37761.0,4.0994]
[1610075649190,0.4825432,37833.0,37761.0,4.0994]
[1610075649387,0.4764,37827.0,37761.0,4.20724]
[1610075649587,0.4764,37827.0,37762.0,0.13465725]
[1610075649987,0.4764,37827.0,37802.0,0.13632608]
[1610075650187,0.4764,37827.0,37802.0,0.26694608]
[1610075650388,0.4764,37827.0,37803.0,0.0185999]
[1610075650587,0.3195,37827.0,37803.0,0.0185999]
[1610075652191,0.3195,37827.0,37817.0,0.13632608]
[1610075652392,0.3195,37827.0,37817.0,0.26625608]
[1610075652592,0.1569,37846.0,37817.0,0.26625608]
[1610075652792,0.1569,37846.0,37818.0,0.0185971]
[1610075653194,0.1569,37846.0,37818.0,3.4558971]
[1610075653794,0.1569,37846.0,37819.0,0.13459599]
[1610075654195,0.13632608,37820.0,37819.0,0.13459599]
[1610075654593,0.1569,37846.0,37818.0,0.01859226]
[1610075654794,0.1569,37846.0,37819.0,0.01859243]
[1610075655196,0.3195,37858.0,37819.0,0.01859243]
[1610075655394,0.3195,37858.0,37818.0,0.01859238]
[1610075655594,0.3195,37858.0,37820.0,0.01859238]
[1610075655794,0.3195,37858.0,37817.0,0.26625608]
[1610075655795,0.3195,37858.0,37819.0,0.01859138]
[1610075656197,0.3195,37858.0,37831.0,0.13632608]
[1610075656397,0.3195,37858.0,37831.0,0.22280608]
[1610075656595,0.3195,37858.0,37832.0,0.01859155]
[1610075658096,0.13632608,37833.0,37832.0,0.01859155]
[1610075658897,0.3195,37858.0,37832.0,0.01859155]
[1610075659499,0.1569,37865.0,37832.0,0.01859155]
[1610075660098,0.13632608,37858.0,37857.0,0.13632608]
[1610075660300,0.1569,37865.0,37857.0,0.13632608]
[1610075660499,0.1569,37865.0,37857.0,0.24016268]
[1610075660898,0.1569,37887.0,37858.0,0.01858624]
[1610075661500,0.1569,37887.0,37861.0,3.347]
[1610075661701,0.01585126,37892.0,37861.0,3.347]
[1610075661901,0.01585126,37892.0,37862.0,0.06237649]
[1610075662104,0.01584682,37903.0,37891.0,0.13632608]
[1610075662302,0.01584682,37903.0,37891.0,0.24104608]
[1610075662504,0.15216511,37931.0,37891.0,0.24104608]
[1610075662703,0.01583903,37931.0,37892.0,0.01857516]
[1610075662908,0.48645885,37927.0,37892.0,0.01857516]
[1610075663305,0.1569,37930.0,37892.0,0.01857516]
[1610075663706,0.01583305,37936.0,37892.0,0.01857516]
[1610075663907,0.1569,37935.0,37892.0,0.01857516]
[1610075664107,0.1569,37935.0,37916.0,0.13632608]
[1610075664307,0.1569,37935.0,37916.0,0.26350608]
[1610075664506,0.1569,37935.0,37917.0,0.00026591]
[1610075666109,0.13632608,37918.0,37917.0,0.00026591]
[1610075668411,0.13632608,37918.0,37916.0,0.12718]
[1610075668612,0.64247051,37935.0,37916.0,0.12718]
[1610075668811,0.64247051,37935.0,37917.0,0.00026591]
[1610075669015,0.1569,37935.0,37917.0,0.00026591]
[1610075670216,0.1569,37935.0,37934.0,0.13632608]
[1610075670415,0.01579583,37945.0,37934.0,0.27171608]
[1610075670616,0.01578458,37947.0,37934.0,0.27171608]
[1610075671018,0.13632608,37948.0,37934.0,0.27171608]
[1610075671416,0.48489254,37956.0,37934.0,0.27171608]
[1610075671817,0.1569,37963.0,37934.0,0.27171608]
[1610075671818,0.01576791,37959.0,37934.0,0.27171608]
[1610075672217,0.13632608,37935.0,37934.0,0.13539]
[1610075675420,0.13632608,37935.0,37916.0,0.12691409]
[1610075675620,0.13632608,37935.0,37907.0,3.1436]
[1610075675820,0.13632608,37935.0,37891.0,0.10472]
[1610075676020,0.13632608,37935.0,37908.0,0.00026603]
[1610075676221,4.53067,37947.0,37908.0,0.00026603]
[1610075676422,0.01571756,37945.0,37892.0,0.01857939]
[1610075676622,0.01570684,37943.0,37878.0,0.06236738]
[1610075676824,0.01570684,37943.0,37893.0,0.01857988]
[1610075677021,0.48230543,37943.0,37893.0,0.01857988]
[1610075677221,0.48230543,37943.0,37897.0,4.19]
[1610075677422,0.48211204,37945.0,37897.0,4.2917]
[1610075677621,0.48211204,37945.0,37898.0,0.01857729]
[1610075678022,0.01568889,37951.0,37898.0,0.01857729]
[1610075678222,0.01568889,37951.0,37935.0,0.13632608]
[1610075678424,0.0156835,37956.0,37935.0,0.13632608]
[1610075678624,0.0156835,37956.0,37936.0,0.00026597]
[1610075678825,0.48141576,37961.0,37935.0,0.23192085]
[1610075679024,0.0156746,37962.0,37935.0,0.23192085]
[1610075679624,0.1569,37963.0,37935.0,0.09721]
[1610075680025,0.015663,37960.0,37935.0,0.09721]
[1610075680224,0.13632608,37936.0,37897.0,4.2917]
[1610075680727,0.13632608,37936.0,37898.0,0.06235754]
[1610075681127,0.12745,37948.0,37898.0,0.06235754]
[1610075682229,0.12745,37948.0,37933.0,0.13632608]
[1610075682629,0.12745,37948.0,37934.0,0.00026593]
[1610075684131,0.12745,37948.0,37947.0,0.13632608]
[1610075684535,0.12745,37948.0,37947.0,0.13659198]
[1610075684933,0.13632608,37956.0,37947.0,0.13659198]
[1610075685335,0.13632608,37956.0,37948.0,0.00026587]
[1610075685734,0.13632608,37956.0,37948.0,0.01856831]
[1610075686034,0.13632608,37956.0,37935.0,0.01856701]
[1610075686235,0.13632608,37956.0,37947.0,0.13632608]
[1610075686435,0.13632608,37956.0,37949.0,0.01856681]
[1610075686636,0.13632608,37956.0,37948.0,0.01856764]
[1610075686837,0.13632608,37956.0,37950.0,0.01856532]
[1610075687038,0.13632608,37956.0,37949.0,0.01856536]
[1610075687238,0.1569,37963.0,37949.0,0.01856536]
[1610075687437,0.1569,37963.0,37948.0,0.01856427]
[1610075687637,0.1569,37963.0,37950.0,0.01856205]
[1610075687839,0.1569,37963.0,37949.0,0.01856179]
[1610075688037,0.1569,37963.0,37950.0,0.13009]
[1610075688239,0.13632608,37963.0,37956.0,0.13632608]
[1610075688639,0.13632608,37963.0,37957.0,0.01856142]
[1610075690240,0.13632608,37963.0,37962.0,0.13632608]
[1610075690842,0.13632608,37963.0,37962.0,0.1531775]
[1610075691044,0.13632608,37963.0,37962.0,0.01685142]
[1610075691544,0.13632608,37963.0,37951.0,0.0168845]
[1610075691843,0.13632608,37963.0,37962.0,0.01688447]
[1610075692045,0.13632608,37963.0,37952.0,0.01688434]
[1610075692247,0.13632608,37959.0,37956.0,0.13632608]
[1610075692647,0.13632608,37959.0,37957.0,0.01688449]
[1610075696751,0.13538,37967.0,37957.0,0.01688449]
[1610075696951,0.1569,37992.0,37957.0,0.01688449]
[1610075698353,0.1569,37992.0,37963.0,0.13632608]
[1610075698755,0.1569,37992.0,37964.0,0.0168833]
[1610075700254,0.13632608,37965.0,37964.0,0.0168833]
[1610075701055,0.13632608,37965.0,37947.0,0.01688291]
[1610075701254,0.13632608,37965.0,37964.0,0.01688291]
[1610075701659,0.13632608,37965.0,37947.0,0.01688415]
[1610075701856,0.24249608,37965.0,37964.0,0.01688528]
[1610075702057,0.24249608,37965.0,37948.0,0.01688576]
[1610075702256,0.10617,37965.0,37955.0,0.13632608]
[1610075702458,0.10617,37965.0,37947.0,0.01688588]
[1610075702656,0.10617,37965.0,37956.0,0.01688572]
[1610075702856,0.10617,37965.0,37946.0,0.08619]
[1610075702857,0.10617,37965.0,37948.0,0.01688562]
[1610075703256,0.10617,37965.0,37957.0,0.01688526]
[1610075703457,0.10617,37965.0,37949.0,0.01688487]
[1610075703657,0.10617,37965.0,37958.0,0.016885]
[1610075704057,0.10617,37965.0,37950.0,0.016885]
[1610075704258,0.10617,37965.0,37959.0,0.01688548]
[1610075704458,0.10617,37965.0,37951.0,0.0168855]
[1610075704861,0.10617,37965.0,37960.0,0.01688512]
[1610075705061,0.10617,37965.0,37952.0,0.01688481]
[1610075705260,0.10617,37965.0,37961.0,0.016884]
[1610075705461,0.10617,37965.0,37953.0,0.01688379]
[1610075705659,0.12674,37974.0,37953.0,0.01688379]
[1610075705859,0.12674,37974.0,37952.0,0.12178]
[1610075706059,3.0578,37987.0,37954.0,0.01688247]
[1610075706259,0.13632608,37957.0,37956.0,0.13632608]
[1610075706659,0.13632608,37957.0,37956.0,0.1532086]
[1610075707260,0.12946,37976.0,37956.0,0.1532086]
[1610075707463,0.17259384,37992.0,37956.0,0.1532086]
[1610075707663,0.1569,37992.0,37957.0,0.01688152]
[1610075708261,0.1569,37992.0,37964.0,0.13632608]
[1610075708462,0.1569,37992.0,37964.0,0.26245608]
[1610075708662,0.1569,37992.0,37965.0,0.01687936]
[1610075710364,0.13632608,37966.0,37965.0,0.01687936]
[1610075711363,0.13632608,37966.0,37953.0,0.01688255]
[1610075711563,0.13632608,37966.0,37965.0,0.01688352]
[1610075711862,0.13632608,37966.0,37954.0,0.01688356]
[1610075712064,0.13632608,37966.0,37965.0,0.01688517]
[1610075712464,0.13632608,37966.0,37955.0,0.01688569]
[1610075712662,0.13632608,37966.0,37965.0,0.01688561]
[1610075712865,0.13632608,37966.0,37956.0,0.016885]
[1610075713265,0.13632608,37966.0,37965.0,0.01688456]
[1610075713464,0.13632608,37966.0,37957.0,0.01688412]
[1610075713664,0.13632608,37966.0,37965.0,0.01688492]
[1610075714067,0.13632608,37966.0,37958.0,0.01688469]
[1610075714267,3.3559,37969.0,37953.0,0.08646]
[1610075714268,3.4808,37969.0,37965.0,0.0168843]
[1610075714466,3.4808,37969.0,37953.0,0.08646]
[1610075714467,3.4808,37969.0,37959.0,0.01688436]
[1610075714867,3.4808,37969.0,37966.0,0.01688476]
[1610075715067,3.4808,37969.0,37960.0,0.01688464]
[1610075715267,3.4808,37969.0,37967.0,0.01688382]
[1610075715469,3.3559,37969.0,37961.0,0.01688379]
[1610075715669,3.3559,37969.0,37962.0,0.11203]
[1610075716068,3.3559,37969.0,37963.0,0.0168795]
[1610075716268,0.13632608,37964.0,37963.0,0.0168795]
[1610075716670,0.13632608,37964.0,37934.0,0.09383]
[1610075717073,2.9674,37957.0,37945.0,0.01688199]
[1610075717272,3.10204,37957.0,37945.0,0.01688199]
[1610075717472,3.10204,37957.0,37935.0,0.01688332]
[1610075717672,3.10204,37957.0,37946.0,0.01688401]
[1610075717873,3.10204,37957.0,37936.0,0.01688362]
[1610075718174,3.10204,37957.0,37947.0,0.01688411]
[1610075718373,0.13632608,37948.0,37937.0,0.01688444]
[1610075718773,0.23455608,37948.0,37930.0,0.01688438]
[1610075718973,0.23455608,37948.0,37938.0,0.01688532]
[1610075719174,0.23455608,37948.0,37938.0,0.12553]
[1610075719573,0.23455608,37948.0,37939.0,0.01688449]
[1610075720274,0.13632608,37940.0,37939.0,0.01688449]
[1610075723181,0.01609518,37951.0,37939.0,0.01688449]
[1610075723379,0.57384904,37954.0,37939.0,0.01688449]
[1610075723380,0.49428461,37954.0,37939.0,0.01688449]
[1610075723780,0.01609861,37958.0,37939.0,0.01688449]
[1610075724180,0.01609606,37960.0,37939.0,0.01688449]
[1610075724381,0.01609606,37960.0,37954.0,0.13632608]
[1610075724782,0.01609606,37960.0,37955.0,0.01688095]
[1610075724981,0.01609996,37961.0,37955.0,0.01688095]
[1610075725282,0.01609996,37961.0,37952.0,0.01688141]
[1610075725480,0.01610045,37960.0,37956.0,0.01688099]
[1610075725683,0.01610469,37959.0,37956.0,0.01688099]
[1610075725882,0.01610469,37959.0,37953.0,0.01688134]
[1610075726083,0.47851646,37960.0,37951.0,0.08993]
[1610075726084,0.47853763,37958.0,37957.0,0.01688183]
[1610075726284,0.61486371,37958.0,37954.0,0.01688236]
[1610075726483,1.18927744,37958.0,37954.0,0.01688236]
[1610075726684,1.18927744,37958.0,37957.0,0.0168829]
[1610075726884,0.13632608,37958.0,37955.0,0.01688332]
[1610075727084,0.13632608,37958.0,37957.0,0.01688256]
[1610075727285,0.71072652,37958.0,37957.0,0.01661987]
[1610075727485,0.71072652,37958.0,37956.0,0.01688334]
[1610075727687,1.57707586,37958.0,37957.0,0.01688415]
[1610075727885,5.95397586,37958.0,37957.0,0.01688415]
[1610075728084,5.95397586,37958.0,37909.0,3.1124]
[1610075728085,7.45454324,37958.0,37939.0,0.0168855]
[1610075728286,0.13632608,37940.0,37939.0,0.0168855]
[1610075728484,0.13632608,37940.0,37926.0,0.01688596]
[1610075728684,4.01732608,37940.0,37939.0,0.01688715]
[1610075728885,4.01732608,37940.0,37939.0,0.0166244]
[1610075729084,4.01732608,37940.0,37927.0,0.01688678]
[1610075729286,4.03345642,37940.0,37939.0,0.01688644]
[1610075729485,4.03345642,37940.0,37928.0,0.01688619]
[1610075729685,0.15245642,37940.0,37939.0,0.01688692]
[1610075729886,1.5785525,37940.0,37939.0,0.01688692]
[1610075730087,0.01613647,37933.0,37918.0,0.01688749]
[1610075730289,0.13632608,37919.0,37908.0,0.13606]
[1610075730890,0.13632608,37919.0,37909.0,0.01688992]
[1610075731289,0.13632608,37919.0,37901.0,0.01689237]
[1610075731688,0.13632608,37919.0,37910.0,0.01663194]
[1610075731888,0.13632608,37919.0,37873.0,0.11158065]
[1610075731889,0.13632608,37919.0,37902.0,0.00026288]
[1610075732089,0.13632608,37919.0,37911.0,0.01689582]
[1610075732290,0.13632608,37912.0,37911.0,0.01689582]
[1610075732590,4.4278,37910.0,37883.0,0.13733]
[1610075732991,4.4278,37910.0,37884.0,0.01689747]
[1610075733190,0.01612696,37910.0,37884.0,0.01689747]
[1610075733392,4.2136,37906.0,37884.0,0.01689747]
[1610075734391,0.13632608,37892.0,37891.0,0.13632608]
[1610075734791,0.13632608,37892.0,37891.0,0.15322285]
[1610075734992,0.13632608,37892.0,37891.0,0.01689677]
[1610075735193,0.13632608,37892.0,37891.0,0.01663385]
[1610075735392,0.13632608,37892.0,37883.0,0.13733]
[1610075735592,0.13632608,37892.0,37884.0,0.01689672]
[1610075736392,0.13632608,37885.0,37884.0,0.01689672]
[1610075736593,0.63942608,37885.0,37884.0,0.01689672]
[1610075736792,0.63942608,37885.0,37855.0,0.11162321]
[1610075736995,3.3026,37856.0,37855.0,0.11162321]
[1610075737194,3.3026,37856.0,37829.0,0.12854547]
[1610075737393,0.13632608,37885.0,37855.0,0.01690206]
[1610075737598,6.28332608,37885.0,37855.0,0.01663906]
[1610075737794,3.3724,37860.0,37842.0,0.1354]
[1610075737995,3.3724,37860.0,37856.0,0.01690911]
[1610075738195,3.3724,37860.0,37843.0,0.01691036]
[1610075738397,3.3724,37860.0,37842.0,0.1354]
[1610075738398,0.13632608,37844.0,37842.0,0.1354]
[1610075739096,0.13632608,37844.0,37843.0,0.01691159]
[1610075740399,0.58762608,37844.0,37843.0,0.01691159]
[1610075742500,0.58762608,37844.0,37802.0,0.2988]
[1610075742501,0.58762608,37844.0,37835.0,0.01691468]
[1610075742701,0.67727608,37844.0,37843.0,0.01691471]
[1610075742900,0.67727608,37844.0,37819.0,0.25248608]
[1610075742901,0.67727608,37844.0,37836.0,0.01691476]
[1610075743299,0.67727608,37844.0,37843.0,0.01691478]
[1610075743503,0.67727608,37844.0,37837.0,0.01691557]
[1610075743701,0.67727608,37844.0,37843.0,0.01691591]
[1610075744100,0.67727608,37844.0,37838.0,0.01691609]
[1610075744301,0.67727608,37844.0,37843.0,0.00026321]
[1610075744501,0.54095,37844.0,37839.0,0.00026321]
[1610075744902,0.54095,37844.0,37843.0,0.00026321]
[1610075744903,0.08965,37844.0,37843.0,0.00026321]
[1610075745101,0.08965,37844.0,37820.0,0.01665091]
[1610075745102,0.08965,37844.0,37840.0,0.00026321]
[1610075745303,3.2236,37858.0,37843.0,0.00026318]
[1610075745502,3.2236,37858.0,37830.0,0.13341]
[1610075745503,3.2236,37858.0,37841.0,0.00026318]
[1610075745905,3.3074,37858.0,37831.0,0.01691304]
[1610075746103,3.3074,37858.0,37842.0,0.00026318]
[1610075746304,3.3074,37858.0,37832.0,0.00026318]
[1610075746504,0.13632608,37843.0,37832.0,0.00026318]
[1610075746703,0.13632608,37843.0,37831.0,0.01664986]
[1610075746904,0.13632608,37843.0,37833.0,0.00026319]
[1610075747105,0.13632608,37843.0,37831.0,0.01691305]
[1610075747506,0.13632608,37843.0,37834.0,0.00026319]
[1610075747705,0.13632608,37843.0,37832.0,0.00026319]
[1610075747906,0.13632608,37843.0,37835.0,0.00026319]
[1610075748208,0.13632608,37843.0,37833.0,0.00026319]
[1610075748406,0.13632608,37834.0,37831.0,0.01664986]
[1610075748809,0.13632608,37834.0,37831.0,0.01691306]
[1610075750310,0.13632608,37834.0,37820.0,0.02096177]
[1610075750509,0.13632608,37834.0,37832.0,0.00027093]
[1610075750909,0.13632608,37834.0,37821.0,0.02096116]
[1610075751110,0.13632608,37834.0,37833.0,0.00027093]
[1610075751510,4.07942608,37834.0,37822.0,0.02096226]
[1610075751709,4.07942608,37834.0,37833.0,0.00027098]
[1610075751912,4.07942608,37834.0,37809.0,0.11535]
[1610075752112,4.07942608,37834.0,37833.0,0.00027099]
[1610075752513,4.07942608,37834.0,37810.0,0.02096746]
[1610075752715,4.07942608,37834.0,37833.0,0.00027102]
[1610075752916,0.13632608,37834.0,37811.0,0.00027102]
[1610075753313,0.13632608,37834.0,37810.0,0.02069644]
[1610075753314,0.13632608,37834.0,37833.0,0.00027102]
[1610075753516,0.13632608,37834.0,37817.0,0.0913]
[1610075753713,0.13632608,37834.0,37833.0,0.00027101]
[1610075754113,0.13632608,37834.0,37832.0,0.08935]
[1610075754313,0.13632608,37834.0,37833.0,0.00027099]
[1610075755314,0.13632608,37834.0,37833.0,0.02096314]
[1610075755915,0.12765,37852.0,37833.0,0.02096314]
[1610075756316,0.2914,37873.0,37833.0,3.48216314]
[1610075756716,0.2914,37873.0,37851.0,0.12447]
[1610075757116,0.2914,37873.0,37852.0,0.02095428]
[1610075757515,0.2723,37896.0,37852.0,0.02095428]
[1610075758516,0.2723,37896.0,37859.0,0.13632608]
[1610075758716,0.2723,37896.0,37859.0,0.25522608]
[1610075758917,3.161,37899.0,37859.0,0.1189]
[1610075759119,3.161,37899.0,37860.0,0.020952]
[1610075760318,0.01575017,37897.0,37860.0,0.020952]
[1610075760518,0.13632608,37861.0,37860.0,0.020952]
[1610075761722,0.01575369,37895.0,37860.0,0.020952]
[1610075761923,3.4372,37889.0,37860.0,0.020952]
[1610075762122,0.12662,37889.0,37860.0,0.020952]
[1610075762522,0.13632608,37861.0,37860.0,0.020952]
[1610075765025,0.12662,37889.0,37861.0,0.13632608]
[1610075765224,0.12662,37889.0,37860.0,0.020952]
[1610075765425,4.0543216,37902.0,37860.0,0.020952]
[1610075765426,3.4925,37902.0,37860.0,0.020952]
[1610075766228,0.2724,37905.0,37860.0,0.020952]
[1610075766426,0.2724,37905.0,37860.0,3.266452]
[1610075766829,0.2724,37905.0,37861.0,0.14281301]
[1610075767028,0.2724,37905.0,37861.0,0.14308375]
[1610075768430,0.13632608,37869.0,37867.0,0.13632608]
[1610075768630,0.13632608,37869.0,37861.0,0.14308375]
[1610075769032,0.13632608,37869.0,37860.0,0.02094615]
[1610075769232,0.13632608,37869.0,37862.0,0.02094823]
[1610075769637,0.13632608,37869.0,37861.0,0.02095019]
[1610075769833,0.13632608,37869.0,37863.0,0.0209521]
[1610075770033,0.13632608,37869.0,37859.0,0.1189]
[1610075770034,0.13632608,37869.0,37862.0,0.02095108]
[1610075770233,0.13632608,37869.0,37864.0,0.0002708]
[1610075770435,0.13226,37884.0,37864.0,0.02095151]
[1610075770436,0.13632608,37865.0,37864.0,0.02095151]
[1610075770632,0.13632608,37865.0,37860.0,0.02095113]
[1610075770834,0.13632608,37865.0,37864.0,0.02095108]
[1610075771235,0.13632608,37865.0,37861.0,0.02095133]
[1610075771434,0.13632608,37865.0,37864.0,0.02095125]
[1610075771634,0.13632608,37865.0,37862.0,0.02095106]
[1610075771834,0.13632608,37865.0,37864.0,0.02094981]
[1610075772136,0.13632608,37865.0,37860.0,0.02094974]
[1610075772534,0.13632608,37865.0,37864.0,0.02094923]
[1610075772736,0.13632608,37865.0,37861.0,0.02094908]
[1610075772935,0.13632608,37865.0,37864.0,0.02095036]
[1610075773135,0.13632608,37865.0,37864.0,0.00027077]
[1610075773335,0.13632608,37865.0,37862.0,0.02095055]